[Event "*** Titled Tuesday Blitz"]
[Site "Chess.com"]
[Date "2019.12.03"]
[Round "7"]
[White "maciek_92"]
[Black "Kostya_Nikologorskiy"]
[Result "0-1"]
[WhiteElo "2758"]
[BlackElo "2664"]
[TimeControl "180+2"]
[EndTime "14:38:54 PST"]
[Termination "Kostya_Nikologorskiy won by checkmate"]

1. e4 {[%clk 0:03:01.9]} 1... e6 {[%clk 0:02:58.1]} 2. d4 {[%clk 0:03:02.7]}
2... d5 {[%clk 0:02:59.7]} 3. Nd2 {[%clk 0:03:04.4]} 3... Nc6 {[%clk 0:02:54.3]}
4. Ngf3 {[%clk 0:03:05.1]} 4... Nf6 {[%clk 0:02:51.7]} 5. e5 {[%clk 0:03:06.2]}
5... Nd7 {[%clk 0:02:52.5]} 6. Bd3 {[%clk 0:03:06.6]} 6... Nb4 {[%clk
0:02:51.6]} 7. Be2 {[%clk 0:03:07.6]} 7... c5 {[%clk 0:02:51.6]} 8. c3 {[%clk
0:03:09.2]} 8... Nc6 {[%clk 0:02:52]} 9. Bd3 {[%clk 0:03:10.9]} 9... Be7 {[%clk
0:02:45.9]} 10. O-O {[%clk 0:03:06.5]} 10... g5 {[%clk 0:02:43.3]} 11. dxc5
{[%clk 0:03:06.7]} 11... g4 {[%clk 0:02:42.8]} 12. Nd4 {[%clk 0:03:07.3]} 12...
Ndxe5 {[%clk 0:02:42.5]} 13. Bb5 {[%clk 0:02:54.4]} 13... Bd7 {[%clk 0:02:40.8]}
14. b4 {[%clk 0:02:37.3]} 14... h5 {[%clk 0:02:35.9]} 15. Re1 {[%clk 0:02:30.2]}
15... Nxd4 {[%clk 0:02:29.8]} 16. cxd4 {[%clk 0:02:20.1]} 16... Bxb5 {[%clk
0:02:25.7]} 17. dxe5 {[%clk 0:02:22]} 17... a5 {[%clk 0:02:16]} 18. Nb3 {[%clk
0:02:13.9]} 18... axb4 {[%clk 0:02:09]} 19. Bd2 {[%clk 0:02:05.4]} 19... Ra4
{[%clk 0:01:48.2]} 20. Nd4 {[%clk 0:01:30.2]} 20... Qd7 {[%clk 0:01:47.9]} 21.
Qc2 {[%clk 0:01:23.3]} 21... h4 {[%clk 0:01:13.4]} 22. Rab1 {[%clk 0:01:16.2]}
22... b3 {[%clk 0:01:09.1]} 23. Nxb3 {[%clk 0:01:12.4]} 23... Rc4 {[%clk
0:01:07.5]} 24. Qd1 {[%clk 0:01:10.4]} 24... g3 {[%clk 0:01:05.7]} 25. Be3
{[%clk 0:01:09]} 25... Ba4 {[%clk 0:00:51.3]} 26. Qf3 {[%clk 0:00:43.1]} 26...
gxh2+ {[%clk 0:00:49.7]} 27. Kxh2 {[%clk 0:00:40]} 27... Rc2 {[%clk 0:00:31.7]}
28. Nd4 {[%clk 0:00:37.4]} 28... Rxa2 {[%clk 0:00:28.7]} 29. Ra1 {[%clk
0:00:36.2]} 29... Rxa1 {[%clk 0:00:25.9]} 30. Rxa1 {[%clk 0:00:38.1]} 30... Bxc5
{[%clk 0:00:21.4]} 31. Nb3 {[%clk 0:00:32.8]} 31... Bxe3 {[%clk 0:00:19.5]} 32.
Qxe3 {[%clk 0:00:34]} 32... b5 {[%clk 0:00:10.1]} 33. Nd4 {[%clk 0:00:28.4]}
33... Kf8 {[%clk 0:00:09.1]} 34. Rc1 {[%clk 0:00:27.1]} 34... Rh5 {[%clk
0:00:07.5]} 35. f4 {[%clk 0:00:20.7]} 35... b4 {[%clk 0:00:08.7]} 36. Qe2 {[%clk
0:00:20.3]} 36... Rh6 {[%clk 0:00:08]} 37. Qd2 {[%clk 0:00:20.5]} 37... b3
{[%clk 0:00:08.8]} 38. f5 {[%clk 0:00:21.4]} 38... Rh5 {[%clk 0:00:10]} 39. f6
{[%clk 0:00:20.4]} 39... Qb7 {[%clk 0:00:10.5]} 40. Qa5 {[%clk 0:00:14.8]} 40...
b2 {[%clk 0:00:05]} 41. Rb1 {[%clk 0:00:09.1]} 41... Be8 {[%clk 0:00:05.6]} 42.
Qa3+ {[%clk 0:00:09.8]} 42... Kg8 {[%clk 0:00:06.4]} 43. Qf3 {[%clk 0:00:09.7]}
43... Rg5 {[%clk 0:00:04.9]} 44. Qe3 {[%clk 0:00:09]} 44... Rg4 {[%clk
0:00:03.6]} 45. Qd2 {[%clk 0:00:04]} 45... Qc7 {[%clk 0:00:04.3]} 46. Nf3 {[%clk
0:00:04.4]} 46... Ba4 {[%clk 0:00:03]} 47. Rxb2 {[%clk 0:00:05.2]} 47... Rg6
{[%clk 0:00:03.3]} 48. Qf4 {[%clk 0:00:05.9]} 48... Be8 {[%clk 0:00:03.9]} 49.
Ra2 {[%clk 0:00:07.2]} 49... Bc6 {[%clk 0:00:04]} 50. Rc2 {[%clk 0:00:07.9]}
50... Qb7 {[%clk 0:00:04.4]} 51. Nd4 {[%clk 0:00:07.9]} 51... Be8 {[%clk
0:00:05.8]} 52. Qxh4 {[%clk 0:00:08.1]} 52... Qb8 {[%clk 0:00:07.3]} 53. Nf3
{[%clk 0:00:08.8]} 53... d4 {[%clk 0:00:07.5]} 54. Qxd4 {[%clk 0:00:08.3]} 54...
Rxf6 {[%clk 0:00:09]} 55. Rc4 {[%clk 0:00:08]} 55... Rh6+ {[%clk 0:00:10]} 56.
Kg3 {[%clk 0:00:09.2]} 56... Qb1 {[%clk 0:00:10.6]} 57. Qe3 {[%clk 0:00:09.5]}
57... Rg6+ {[%clk 0:00:11.7]} 58. Kh2 {[%clk 0:00:08.1]} 58... Qf1 {[%clk
0:00:10.1]} 59. Rc2 {[%clk 0:00:07.7]} 59... Bc6 {[%clk 0:00:11.5]} 60. Rf2
{[%clk 0:00:07.8]} 60... Qd1 {[%clk 0:00:09.4]} 61. Qd4 {[%clk 0:00:04]} 61...
Bxf3 {[%clk 0:00:09.8]} 62. Qh4 {[%clk 0:00:04.7]} 62... Bd5 {[%clk 0:00:08.3]}
63. Qf4 {[%clk 0:00:05.4]} 63... Qh5+ {[%clk 0:00:08.2]} 64. Kg1 {[%clk
0:00:06.5]} 64... Rg5 {[%clk 0:00:09.6]} 65. Qf6 {[%clk 0:00:05.5]} 65... Rf5
{[%clk 0:00:08.7]} 66. Qd8+ {[%clk 0:00:06.3]} 66... Kg7 {[%clk 0:00:10]} 67.
Rxf5 {[%clk 0:00:06.6]} 67... Qxf5 {[%clk 0:00:11.3]} 68. Qc7 {[%clk 0:00:08.1]}
68... Qe4 {[%clk 0:00:11.5]} 69. Kf2 {[%clk 0:00:04.5]} 69... Qxg2+ {[%clk
0:00:12.7]} 70. Ke3 {[%clk 0:00:06.1]} 70... Qe4+ {[%clk 0:00:13.9]} 71. Kf2
{[%clk 0:00:08]} 71... Qd4+ {[%clk 0:00:15.1]} 72. Kg3 {[%clk 0:00:09]} 72...
Qe3+ {[%clk 0:00:16.6]} 73. Kg4 {[%clk 0:00:09.6]} 73... Qf3+ {[%clk 0:00:14.7]}
74. Kh4 {[%clk 0:00:10.6]} 74... Kg6 {[%clk 0:00:14.2]} 75. Qb8 {[%clk 0:00:10]}
75... Qe4+ {[%clk 0:00:14.4]} 76. Kg3 {[%clk 0:00:10.2]} 76... Qe3+ {[%clk
0:00:14.8]} 77. Kg4 {[%clk 0:00:11.5]} 77... Bf3+ {[%clk 0:00:15.1]} 78. Kh4
{[%clk 0:00:12.4]} 78... Qf4+ {[%clk 0:00:15.4]} 79. Kh3 {[%clk 0:00:13]} 79...
Qg4+ {[%clk 0:00:17.3]} 80. Kh2 {[%clk 0:00:14.9]} 80... Qg2# {[%clk 0:00:19.2]}
0-1

[Event "*** Titled Tuesday Blitz"]
[Site "Chess.com"]
[Date "2019.12.03"]
[Round "7"]
[White "enriquetejedor"]
[Black "Godzillator"]
[Result "1-0"]
[WhiteElo "2473"]
[BlackElo "2354"]
[TimeControl "180+2"]
[EndTime "14:39:11 PST"]
[Termination "enriquetejedor won by resignation"]

1. e4 {[%clk 0:01:53.7]} 1... c6 {[%clk 0:03:00.3]} 2. d3 {[%clk 0:01:51.3]}
2... d5 {[%clk 0:03:01.9]} 3. Nc3 {[%clk 0:01:52.9]} 3... dxe4 {[%clk 0:03:00]}
4. dxe4 {[%clk 0:01:53.4]} 4... Qxd1+ {[%clk 0:03:00.4]} 5. Nxd1 {[%clk
0:01:55.3]} 5... Nf6 {[%clk 0:03:00.3]} 6. f3 {[%clk 0:01:55.2]} 6... g6 {[%clk
0:02:58.5]} 7. a4 {[%clk 0:01:46.3]} 7... Bg7 {[%clk 0:02:58.4]} 8. Bc4 {[%clk
0:01:47.4]} 8... O-O {[%clk 0:02:58.8]} 9. Ne2 {[%clk 0:01:47.4]} 9... Nbd7
{[%clk 0:02:59.9]} 10. O-O {[%clk 0:01:32]} 10... Ne5 {[%clk 0:02:58.7]} 11. Ba2
{[%clk 0:01:22.5]} 11... c5 {[%clk 0:02:56.6]} 12. Ne3 {[%clk 0:01:20.2]} 12...
Nc6 {[%clk 0:02:56.1]} 13. c3 {[%clk 0:00:49.9]} 13... e6 {[%clk 0:02:56.1]} 14.
Nc4 {[%clk 0:00:48.9]} 14... b6 {[%clk 0:02:55.2]} 15. Bf4 {[%clk 0:00:26.6]}
15... Ba6 {[%clk 0:02:54.7]} 16. Rfd1 {[%clk 0:00:17]} 16... Rfd8 {[%clk
0:02:54.5]} 17. Kf2 {[%clk 0:00:17.1]} 17... Ne8 {[%clk 0:02:29.3]} 18. Na3
{[%clk 0:00:12.8]} 18... e5 {[%clk 0:01:44.2]} 19. Bg5 {[%clk 0:00:09.9]} 19...
Bf6 {[%clk 0:01:37.1]} 20. Be3 {[%clk 0:00:05.6]} 20... Nc7 {[%clk 0:01:36.8]}
21. g3 {[%clk 0:00:03.1]} 21... Kf8 {[%clk 0:01:36.1]} 22. Bc4 {[%clk
0:00:03.4]} 22... Bb7 {[%clk 0:01:28.4]} 23. h3 {[%clk 0:00:03.6]} 23... Na5
{[%clk 0:01:26.4]} 24. Ba2 {[%clk 0:00:03.4]} 24... Ke7 {[%clk 0:01:26.6]} 25.
b4 {[%clk 0:00:04.6]} 25... cxb4 {[%clk 0:01:22.9]} 26. cxb4 {[%clk 0:00:06.5]}
26... Nc6 {[%clk 0:01:24.1]} 27. Rdc1 {[%clk 0:00:06.2]} 27... Ne6 {[%clk
0:01:21.5]} 28. Nc2 {[%clk 0:00:03.5]} 28... Ned4 {[%clk 0:01:16.1]} 29. Nc3
{[%clk 0:00:04.3]} 29... Nxc2 {[%clk 0:01:15.1]} 30. Rxc2 {[%clk 0:00:06.2]}
30... Nxb4 {[%clk 0:01:16.2]} 31. Re2 {[%clk 0:00:04.6]} 31... Nxa2 {[%clk
0:01:12.9]} 32. Raxa2 {[%clk 0:00:06.5]} 32... Rd3 {[%clk 0:01:09]} 33. Nb5
{[%clk 0:00:05.3]} 33... Bc6 {[%clk 0:01:07.8]} 34. Rec2 {[%clk 0:00:05.3]}
34... Bxb5 {[%clk 0:01:08.1]} 35. axb5 {[%clk 0:00:07.2]} 35... Kd7 {[%clk
0:01:05.5]} 36. Bxb6 {[%clk 0:00:07.4]} 36... Bd8 {[%clk 0:00:55]} 37. Bxa7
{[%clk 0:00:05.2]} 37... Rb3 {[%clk 0:00:52.2]} 38. Rd2+ {[%clk 0:00:02.8]}
38... Kc8 {[%clk 0:00:51.8]} 39. b6 {[%clk 0:00:03.7]} 39... Bxb6+ {[%clk
0:00:47.7]} 40. Bxb6 {[%clk 0:00:04.8]} 40... Rxa2 {[%clk 0:00:48.6]} 41. Rxa2
{[%clk 0:00:06.7]} 41... Rxb6 {[%clk 0:00:49.3]} 42. Ra7 {[%clk 0:00:07.7]}
42... Rb7 {[%clk 0:00:49.4]} 43. Ra5 {[%clk 0:00:08.4]} 43... f6 {[%clk
0:00:49.2]} 44. Ra8+ {[%clk 0:00:09.2]} 44... Kd7 {[%clk 0:00:49.2]} 45. g4
{[%clk 0:00:05]} 45... Ke6 {[%clk 0:00:46]} 46. h4 {[%clk 0:00:06]} 46... Rb2+
{[%clk 0:00:31.7]} 47. Kg3 {[%clk 0:00:05.6]} 47... Rb7 {[%clk 0:00:30.4]} 48.
Rh8 {[%clk 0:00:05]} 48... f5 {[%clk 0:00:28.2]} 49. gxf5+ {[%clk 0:00:04.5]}
49... gxf5 {[%clk 0:00:29.3]} 50. Re8+ {[%clk 0:00:04.9]} 50... Kd6 {[%clk
0:00:27.3]} 51. exf5 {[%clk 0:00:05.5]} 51... Rg7+ {[%clk 0:00:24.6]} 52. Kh3
{[%clk 0:00:06.4]} 52... Ra7 {[%clk 0:00:16.8]} 53. Re6+ {[%clk 0:00:05.9]}
53... Kd5 {[%clk 0:00:17.2]} 54. Kg4 {[%clk 0:00:06.7]} 54... Ra4+ {[%clk
0:00:17.5]} 55. Kg5 {[%clk 0:00:07.5]} 55... Rf4 {[%clk 0:00:18.4]} 56. Rh6
{[%clk 0:00:07.6]} 56... Rxf3 {[%clk 0:00:17.5]} 57. Rxh7 {[%clk 0:00:09.1]}
57... e4 {[%clk 0:00:18.7]} 58. Re7 {[%clk 0:00:08.9]} 58... e3 {[%clk
0:00:19.1]} 59. f6 {[%clk 0:00:10.1]} 59... Kd4 {[%clk 0:00:19.7]} 60. h5 {[%clk
0:00:10.8]} 60... Kd3 {[%clk 0:00:19.3]} 61. h6 {[%clk 0:00:12.1]} 61... e2
{[%clk 0:00:20.7]} 62. Rxe2 {[%clk 0:00:12.4]} 62... Kxe2 {[%clk 0:00:21.5]} 63.
h7 {[%clk 0:00:13.7]} 63... Rh3 {[%clk 0:00:22.4]} 64. f7 {[%clk 0:00:14.8]}
64... Rxh7 {[%clk 0:00:21.3]} 65. f8=Q {[%clk 0:00:16.2]} 65... Rh3 {[%clk
0:00:21.3]} 66. Qb4 {[%clk 0:00:07.9]} 66... Rf3 {[%clk 0:00:20.5]} 67. Kg4
{[%clk 0:00:08.4]} 67... Re3 {[%clk 0:00:21.3]} 68. Qc4+ {[%clk 0:00:09.3]}
68... Kd2 {[%clk 0:00:21.3]} 69. Kf4 {[%clk 0:00:10.2]} 69... Rc3 {[%clk
0:00:21.8]} 70. Qd4+ {[%clk 0:00:10.6]} 70... Rd3 {[%clk 0:00:22.8]} 71. Qb2+
{[%clk 0:00:11.7]} 71... Kd1 {[%clk 0:00:22.5]} 72. Ke4 {[%clk 0:00:13.6]} 72...
Rd2 {[%clk 0:00:22.1]} 73. Qb1+ {[%clk 0:00:15]} 73... Ke2 {[%clk 0:00:23.1]}
74. Qg1 {[%clk 0:00:16.9]} 74... Rc2 {[%clk 0:00:23.5]} 75. Qg2+ {[%clk
0:00:10.3]} 75... Kd1 {[%clk 0:00:24]} 76. Qg1+ {[%clk 0:00:06.9]} 76... Ke2
{[%clk 0:00:24.9]} 77. Qg2+ {[%clk 0:00:06.1]} 77... Kd1 {[%clk 0:00:25.8]} 78.
Qf1+ {[%clk 0:00:07.4]} 78... Kd2 {[%clk 0:00:26.7]} 79. Kd4 {[%clk 0:00:08.8]}
79... Rb2 {[%clk 0:00:25.4]} 80. Qf2+ {[%clk 0:00:08.6]} 80... Kc1 {[%clk
0:00:25.5]} 81. Qe1+ {[%clk 0:00:09.8]} 81... Kc2 {[%clk 0:00:26.4]} 82. Kc4
{[%clk 0:00:11.2]} 82... Ra2 {[%clk 0:00:24.9]} 83. Qe2+ {[%clk 0:00:12.3]}
83... Kb1 {[%clk 0:00:25.8]} 84. Qd1+ {[%clk 0:00:13.6]} 84... Kb2 {[%clk
0:00:26.6]} 85. Kb4 {[%clk 0:00:15.1]} 85... Ra1 {[%clk 0:00:21.2]} 86. Qd2+
{[%clk 0:00:15.3]} 86... Kb1 {[%clk 0:00:20.2]} 87. Kb3 {[%clk 0:00:15]} 87...
Ra3+ {[%clk 0:00:19.8]} 88. Kxa3 {[%clk 0:00:14.8]} 1-0

[Event "*** Titled Tuesday Blitz"]
[Site "Chess.com"]
[Date "2019.12.03"]
[Round "7"]
[White "HarutyunianTigranK"]
[Black "VincentKeymer"]
[Result "1/2-1/2"]
[WhiteElo "2764"]
[BlackElo "2651"]
[TimeControl "180+2"]
[EndTime "14:39:53 PST"]
[Termination "Game drawn by repetition"]

1. Nf3 {[%clk 0:02:59.7]} 1... d5 {[%clk 0:03:00]} 2. g3 {[%clk 0:02:58.4]} 2...
c6 {[%clk 0:02:55.3]} 3. Bg2 {[%clk 0:02:59.4]} 3... Bf5 {[%clk 0:02:56.6]} 4.
O-O {[%clk 0:03:00.7]} 4... e6 {[%clk 0:02:57.8]} 5. c4 {[%clk 0:03:01.4]} 5...
Nf6 {[%clk 0:02:53.5]} 6. Qb3 {[%clk 0:02:59]} 6... Qb6 {[%clk 0:02:53.5]} 7. d3
{[%clk 0:03:00.4]} 7... Nbd7 {[%clk 0:02:47]} 8. Be3 {[%clk 0:02:58.4]} 8... Bc5
{[%clk 0:02:35.5]} 9. Bxc5 {[%clk 0:02:58.7]} 9... Nxc5 {[%clk 0:02:36.7]} 10.
Qa3 {[%clk 0:03:00.1]} 10... O-O {[%clk 0:02:35.8]} 11. Nbd2 {[%clk 0:03:01.1]}
11... Bg6 {[%clk 0:02:35.4]} 12. Ne5 {[%clk 0:02:50.3]} 12... a5 {[%clk
0:02:31.7]} 13. Nxg6 {[%clk 0:02:50.5]} 13... hxg6 {[%clk 0:02:32]} 14. Rab1
{[%clk 0:02:45.7]} 14... Qb4 {[%clk 0:02:29]} 15. Qc3 {[%clk 0:02:46.1]} 15...
Rab8 {[%clk 0:02:01.5]} 16. Rfc1 {[%clk 0:02:45.3]} 16... Rfc8 {[%clk
0:01:57.5]} 17. Nf3 {[%clk 0:02:16.4]} 17... Ncd7 {[%clk 0:01:21]} 18. Qc2
{[%clk 0:02:10.5]} 18... a4 {[%clk 0:01:19.8]} 19. a3 {[%clk 0:01:43.5]} 19...
Qa5 {[%clk 0:01:19.8]} 20. cxd5 {[%clk 0:01:43.5]} 20... exd5 {[%clk 0:01:19.1]}
21. e4 {[%clk 0:01:44.1]} 21... dxe4 {[%clk 0:01:16.6]} 22. dxe4 {[%clk
0:01:46]} 22... Re8 {[%clk 0:01:15.3]} 23. Rd1 {[%clk 0:01:44]} 23... Nc5 {[%clk
0:01:08]} 24. e5 {[%clk 0:01:39.3]} 24... Nd5 {[%clk 0:01:08]} 25. Nd2 {[%clk
0:01:30.2]} 25... Qa7 {[%clk 0:00:41.9]} 26. Nc4 {[%clk 0:01:28.5]} 26... b5
{[%clk 0:00:42]} 27. Nd6 {[%clk 0:01:14.4]} 27... Rxe5 {[%clk 0:00:41.8]} 28.
Bxd5 {[%clk 0:00:43.7]} 28... cxd5 {[%clk 0:00:34.9]} 29. Rbc1 {[%clk
0:00:33.1]} 29... Nb3 {[%clk 0:00:20.3]} 30. Qc7 {[%clk 0:00:32.7]} 30... Qxc7
{[%clk 0:00:21.4]} 31. Rxc7 {[%clk 0:00:34]} 31... d4 {[%clk 0:00:22.9]} 32.
Nxf7 {[%clk 0:00:29.8]} 32... Rd5 {[%clk 0:00:21.5]} 33. h4 {[%clk 0:00:26.7]}
33... d3 {[%clk 0:00:22.4]} 34. Ng5 {[%clk 0:00:27.4]} 34... d2 {[%clk
0:00:23.7]} 35. Kf1 {[%clk 0:00:25.5]} 35... Re8 {[%clk 0:00:24.8]} 36. Kg2
{[%clk 0:00:14]} 36... Rxg5 {[%clk 0:00:22.6]} 37. hxg5 {[%clk 0:00:10.2]} 37...
Re1 {[%clk 0:00:24.2]} 38. Rxd2 {[%clk 0:00:07.1]} 38... Nxd2 {[%clk 0:00:26.1]}
39. Rc5 {[%clk 0:00:08.3]} 39... Nc4 {[%clk 0:00:19]} 40. Rxb5 {[%clk
0:00:09.1]} 40... Ne5 {[%clk 0:00:20]} 41. Rb4 {[%clk 0:00:06.4]} 41... Nd3
{[%clk 0:00:20.8]} 42. Rxa4 {[%clk 0:00:07.2]} 42... Re2 {[%clk 0:00:22.4]} 43.
Kf3 {[%clk 0:00:05.7]} 43... Rxb2 {[%clk 0:00:23.5]} 44. Ke3 {[%clk 0:00:04.4]}
44... Nxf2 {[%clk 0:00:23.6]} 45. Ra8+ {[%clk 0:00:03.5]} 45... Kh7 {[%clk
0:00:24.1]} 46. a4 {[%clk 0:00:05.4]} 46... Nd1+ {[%clk 0:00:25]} 47. Kd4 {[%clk
0:00:06.1]} 47... Ra2 {[%clk 0:00:22.7]} 48. a5 {[%clk 0:00:07.4]} 48... Ra4+
{[%clk 0:00:22.8]} 49. Kc5 {[%clk 0:00:06.8]} 49... Nc3 {[%clk 0:00:23.8]} 50.
a6 {[%clk 0:00:07.9]} 50... Ne4+ {[%clk 0:00:25]} 51. Kb5 {[%clk 0:00:08.5]}
51... Ra1 {[%clk 0:00:26]} 52. a7 {[%clk 0:00:09.3]} 52... Nd6+ {[%clk
0:00:27.1]} 53. Kb6 {[%clk 0:00:10.4]} 53... Ra2 {[%clk 0:00:24.3]} 54. Rd8
{[%clk 0:00:08.4]} 54... Nc4+ {[%clk 0:00:20]} 55. Kb7 {[%clk 0:00:09.5]} 55...
Na5+ {[%clk 0:00:21.1]} 56. Kc7 {[%clk 0:00:08.8]} 56... Rc2+ {[%clk 0:00:17.1]}
57. Kb6 {[%clk 0:00:06.6]} 57... Nc4+ {[%clk 0:00:18.3]} 58. Kb5 {[%clk
0:00:04.7]} 58... Ra2 {[%clk 0:00:15.4]} 59. a8=Q {[%clk 0:00:06.1]} 59... Rxa8
{[%clk 0:00:17]} 60. Rxa8 {[%clk 0:00:07.8]} 60... Nd6+ {[%clk 0:00:18.1]} 61.
Kc6 {[%clk 0:00:08.5]} 61... Ne4 {[%clk 0:00:20]} 62. Kd5 {[%clk 0:00:09.4]}
62... Nxg5 {[%clk 0:00:19]} 63. Ke5 {[%clk 0:00:10.4]} 63... Nf7+ {[%clk
0:00:20]} 64. Kf4 {[%clk 0:00:11.5]} 64... Nh6 {[%clk 0:00:21.9]} 65. g4 {[%clk
0:00:12]} 65... Nf7 {[%clk 0:00:23.3]} 66. Ra6 {[%clk 0:00:10.4]} 66... Nh6
{[%clk 0:00:24.2]} 67. Ra7 {[%clk 0:00:09.5]} 67... Kg8 {[%clk 0:00:25.3]} 68.
Kg5 {[%clk 0:00:10.5]} 68... Kh7 {[%clk 0:00:25.8]} 69. Rb7 {[%clk 0:00:11.8]}
69... Ng8 {[%clk 0:00:26.3]} 70. Rb1 {[%clk 0:00:13.4]} 70... Nh6 {[%clk
0:00:26.8]} 71. Rh1 {[%clk 0:00:14.1]} 71... Kg8 {[%clk 0:00:28.3]} 72. Re1
{[%clk 0:00:13]} 72... Kh7 {[%clk 0:00:28.3]} 73. Re7 {[%clk 0:00:12.8]} 73...
Ng8 {[%clk 0:00:28.2]} 74. Ra7 {[%clk 0:00:13.2]} 74... Nh6 {[%clk 0:00:29.2]}
75. Kf4 {[%clk 0:00:10.3]} 75... Kg8 {[%clk 0:00:29.5]} 76. g5 {[%clk
0:00:08.6]} 76... Nf5 {[%clk 0:00:29.4]} 77. Ke5 {[%clk 0:00:06.1]} 77... Nh4
{[%clk 0:00:24.3]} 78. Ke6 {[%clk 0:00:05.8]} 78... Nf3 {[%clk 0:00:24.7]} 79.
Ra5 {[%clk 0:00:07]} 79... Nd4+ {[%clk 0:00:25]} 80. Kd5 {[%clk 0:00:06.7]}
80... Nf3 {[%clk 0:00:24.3]} 81. Kd6 {[%clk 0:00:06]} 81... Nd4 {[%clk
0:00:24.9]} 82. Rd5 {[%clk 0:00:06]} 82... Nf5+ {[%clk 0:00:25.2]} 83. Ke5
{[%clk 0:00:06.6]} 83... Kf7 {[%clk 0:00:25.3]} 84. Rd7+ {[%clk 0:00:07.2]}
84... Kg8 {[%clk 0:00:26.3]} 85. Ra7 {[%clk 0:00:09.1]} 85... Ng3 {[%clk
0:00:25.5]} 86. Ke6 {[%clk 0:00:10.3]} 86... Ne4 {[%clk 0:00:24.9]} 87. Ra8+
{[%clk 0:00:11.3]} 87... Kh7 {[%clk 0:00:25.8]} 88. Ra5 {[%clk 0:00:11]} 88...
Kg8 {[%clk 0:00:26.2]} 89. Re5 {[%clk 0:00:12.2]} 89... Ng3 {[%clk 0:00:27]} 90.
Ra5 {[%clk 0:00:08.6]} 90... Ne4 {[%clk 0:00:26.9]} 91. Ke7 {[%clk 0:00:08.9]}
91... Ng3 {[%clk 0:00:20.2]} 92. Ra4 {[%clk 0:00:10.3]} 92... Nf5+ {[%clk
0:00:20.4]} 93. Ke6 {[%clk 0:00:11.6]} 93... Ng3 {[%clk 0:00:20.8]} 94. Ke5
{[%clk 0:00:12.8]} 94... Nf5 {[%clk 0:00:20.7]} 95. Kf4 {[%clk 0:00:14.2]} 95...
Ne7 {[%clk 0:00:20.6]} 96. Ra7 {[%clk 0:00:14.6]} 96... Nf5 {[%clk 0:00:21.6]}
97. Ke5 {[%clk 0:00:14.5]} 1/2-1/2

[Event "*** Titled Tuesday Blitz"]
[Site "Chess.com"]
[Date "2019.12.03"]
[Round "8"]
[White "Radzio1987"]
[Black "Gennady_Kozlov"]
[Result "1-0"]
[WhiteElo "2848"]
[BlackElo "2553"]
[TimeControl "180+2"]
[EndTime "14:46:12 PST"]
[Termination "Radzio1987 won by resignation"]

1. c4 {[%clk 0:02:58.1]} 1... e5 {[%clk 0:02:58.1]} 2. Nc3 {[%clk 0:02:59]} 2...
Nc6 {[%clk 0:02:59.1]} 3. Nf3 {[%clk 0:02:59.5]} 3... Nf6 {[%clk 0:03:00.4]} 4.
a3 {[%clk 0:02:59.3]} 4... a5 {[%clk 0:02:54.5]} 5. d4 {[%clk 0:02:57.1]} 5...
exd4 {[%clk 0:02:54.3]} 6. Nxd4 {[%clk 0:02:59]} 6... Nxd4 {[%clk 0:02:55.5]} 7.
Qxd4 {[%clk 0:02:59.6]} 7... g6 {[%clk 0:02:53.4]} 8. Bg5 {[%clk 0:02:57.7]}
8... Bg7 {[%clk 0:02:55.3]} 9. Nd5 {[%clk 0:02:51.7]} 9... Nxd5 {[%clk
0:02:49.4]} 10. Qxg7 {[%clk 0:02:52.1]} 10... Qxg5 {[%clk 0:02:49.5]} 11. Qxh8+
{[%clk 0:02:53.1]} 1-0

[Event "*** Titled Tuesday Blitz"]
[Site "Chess.com"]
[Date "2019.12.03"]
[Round "8"]
[White "Vugar_Manafov"]
[Black "Elyon2000"]
[Result "1-0"]
[WhiteElo "2512"]
[BlackElo "2359"]
[TimeControl "180+2"]
[EndTime "14:48:04 PST"]
[Termination "Vugar_Manafov won by resignation"]

1. e4 {[%clk 0:03:01.9]} 1... c5 {[%clk 0:03:00.9]} 2. Nf3 {[%clk 0:03:01.8]}
2... Nc6 {[%clk 0:03:02.8]} 3. Nc3 {[%clk 0:03:01.9]} 3... Nf6 {[%clk
0:03:03.7]} 4. Bc4 {[%clk 0:02:59.7]} 4... e6 {[%clk 0:03:04.5]} 5. O-O {[%clk
0:02:59.9]} 5... d5 {[%clk 0:03:04.9]} 6. exd5 {[%clk 0:03:01.1]} 6... exd5
{[%clk 0:03:06.8]} 7. Bb5 {[%clk 0:03:02.3]} 7... Be7 {[%clk 0:03:04.7]} 8. d4
{[%clk 0:03:02.4]} 8... cxd4 {[%clk 0:03:00.8]} 9. Nxd4 {[%clk 0:03:01.7]} 9...
Bd7 {[%clk 0:03:02.1]} 10. Re1 {[%clk 0:03:01.7]} 10... O-O {[%clk 0:03:02.8]}
11. Bg5 {[%clk 0:03:01]} 11... h6 {[%clk 0:03:02.4]} 12. Bh4 {[%clk 0:02:59.8]}
12... a6 {[%clk 0:02:57.1]} 13. Bf1 {[%clk 0:02:55.6]} 13... Bc5 {[%clk
0:02:57.7]} 14. Nb3 {[%clk 0:02:51.7]} 14... Be7 {[%clk 0:02:54.7]} 15. Bxf6
{[%clk 0:02:22.5]} 15... Bxf6 {[%clk 0:02:55.5]} 16. Qxd5 {[%clk 0:02:23.9]}
16... Nb4 {[%clk 0:02:34.5]} 17. Qd2 {[%clk 0:02:12.8]} 17... Bf5 {[%clk
0:02:35.3]} 18. Qf4 {[%clk 0:02:12]} 18... Bxc2 {[%clk 0:02:29]} 19. Qxb4 {[%clk
0:02:10.5]} 1-0

[Event "*** Titled Tuesday Blitz"]
[Site "Chess.com"]
[Date "2019.12.03"]
[Round "8"]
[White "josiur"]
[Black "Laico"]
[Result "1-0"]
[WhiteElo "2423"]
[BlackElo "2327"]
[TimeControl "180+2"]
[EndTime "14:48:51 PST"]
[Termination "josiur won by resignation"]

1. e4 {[%clk 0:03:01.9]} 1... e6 {[%clk 0:03:01.1]} 2. d4 {[%clk 0:03:02.4]}
2... d5 {[%clk 0:03:03]} 3. Nc3 {[%clk 0:03:03.5]} 3... Nf6 {[%clk 0:02:59.4]}
4. Bg5 {[%clk 0:03:03.6]} 4... Be7 {[%clk 0:02:59.6]} 5. e5 {[%clk 0:03:03.6]}
5... Nfd7 {[%clk 0:03:00.6]} 6. h4 {[%clk 0:03:05.2]} 6... O-O {[%clk
0:03:01.1]} 7. Qg4 {[%clk 0:03:05.3]} 7... Kh8 {[%clk 0:03:01.5]} 8. Bd3 {[%clk
0:03:04.8]} 8... c5 {[%clk 0:02:59.2]} 9. Nf3 {[%clk 0:02:54.9]} 9... cxd4
{[%clk 0:02:58.2]} 10. Bxh7 {[%clk 0:02:27.9]} 10... Re8 {[%clk 0:01:16.4]} 11.
Qh5 {[%clk 0:02:25.5]} 11... Nf8 {[%clk 0:01:14.4]} 12. Bg6+ {[%clk 0:02:21.4]}
1-0